[Event "Titled Tuesday Blitz July 25 Early 2023"]
[White "Atanasov, Radislav"]
[Black "Cardenas Carbajal, Nilson"]
[WhiteFideId "2901471"]
[BlackFideId "8401128"]
[WhiteElo "2224"]
[BlackElo "2148"]
[Result "1-0"]
[Round "10"]
[TimeControl "180+2"]
[Date "2023.07.25"]
[WhiteClock "0:02:11"]
[BlackClock "0:00:48"]
[Board "165"]

1. e4 {[%clk 0:02:56]}  e5 {[%clk 0:02:58]} 2. Nf3 {[%clk 0:02:53]}  Nc6 {[%clk 0:02:58]} 3. Bb5 {[%clk 0:02:53]}  a6 {[%clk 0:02:56]} 4. Ba4 {[%clk 0:02:53]}  Nf6 {[%clk 0:02:56]} 5. O-O {[%clk 0:02:53]}  Nxe4 {[%clk 0:02:56]} 6. d4 {[%clk 0:02:52]}  b5 {[%clk 0:02:56]} 7. Bb3 {[%clk 0:02:51]}  d5 {[%clk 0:02:56]} 8. dxe5 {[%clk 0:02:50]}  Be6 {[%clk 0:02:56]} 9. Nbd2 {[%clk 0:02:49]}  Bc5 {[%clk 0:02:51]} 10. Nxe4 {[%clk 0:02:48]}  dxe4 {[%clk 0:02:51]} 11. Qxd8+ {[%clk 0:02:42]}  Rxd8 {[%clk 0:02:50]} 12. Bxe6 {[%clk 0:02:41]}  fxe6 {[%clk 0:02:49]} 13. Ng5 {[%clk 0:02:40]}  Nxe5 {[%clk 0:01:05]} 14. Nxe6 {[%clk 0:02:16]}  Rd5 {[%clk 0:00:48]} 15. Nxc7+ {[%clk 0:02:11]} 1-0


[Site "https://www.chess.com"]

[Event "Titled Tuesday Blitz July 25 Early 2023"]
[White "Guevara Sanchez, Erick Marvin"]
[Black "Zepeda Berlanga, Jan Enrique"]
[WhiteFideId "6700136"]
[BlackFideId "5132355"]
[WhiteElo "2088"]
[BlackElo "1861"]
[Result "0-1"]
[Round "10"]
[TimeControl "180+2"]
[Date "2023.07.25"]
[WhiteClock "0:00:00"]
[BlackClock "0:00:07"]
[Board "166"]

1. e4 {[%clk 0:03:00]}  c5 {[%clk 0:03:00]} 2. d4 {[%clk 0:03:00]}  cxd4 {[%clk 0:02:59]} 3. c3 {[%clk 0:02:56]}  dxc3 {[%clk 0:02:59]} 4. Bc4 {[%clk 0:02:54]}  Nc6 {[%clk 0:03:00]} 5. Nf3 {[%clk 0:02:52]}  d6 {[%clk 0:02:59]} 6. O-O {[%clk 0:02:47]}  Nf6 {[%clk 0:02:58]} 7. Nxc3 {[%clk 0:02:45]}  Bg4 {[%clk 0:02:55]} 8. Bg5 {[%clk 0:02:40]}  e6 {[%clk 0:02:54]} 9. Re1 {[%clk 0:02:30]}  Be7 {[%clk 0:02:51]} 10. h3 {[%clk 0:02:26]}  Bh5 {[%clk 0:02:49]} 11. g4 {[%clk 0:02:23]}  Bg6 {[%clk 0:02:49]} 12. Qe2 {[%clk 0:02:19]}  O-O {[%clk 0:02:47]} 13. Red1 {[%clk 0:02:11]}  h6 {[%clk 0:02:46]} 14. Bh4 {[%clk 0:02:03]}  Qb6 {[%clk 0:02:42]} 15. Bg3 {[%clk 0:02:00]}  Qd8 {[%clk 0:02:32]} 16. e5 {[%clk 0:01:49]}  Nd5 {[%clk 0:02:18]} 17. Nxd5 {[%clk 0:01:45]}  exd5 {[%clk 0:02:17]} 18. Bxd5 {[%clk 0:01:45]}  Qb6 {[%clk 0:02:04]} 19. exd6 {[%clk 0:01:42]}  Bxd6 {[%clk 0:02:02]} 20. Bxd6 {[%clk 0:01:36]}  Rfe8 {[%clk 0:01:56]} 21. Qf1 {[%clk 0:01:18]}  Rad8 {[%clk 0:01:48]} 22. Bg3 {[%clk 0:01:16]}  Nb4 {[%clk 0:01:44]} 23. Bb3 {[%clk 0:01:12]}  Bd3 {[%clk 0:01:32]} 24. Rxd3 {[%clk 0:01:03]}  Nxd3 {[%clk 0:01:31]} 25. Rd1 {[%clk 0:01:00]}  Nc5 {[%clk 0:01:15]} 26. Bc4 {[%clk 0:00:40]}  Qf6 {[%clk 0:00:42]} 27. Kg2 {[%clk 0:00:35]}  Ne4 {[%clk 0:00:25]} 28. Bh4 {[%clk 0:00:32]}  g5 {[%clk 0:00:23]} 29. Bg3 {[%clk 0:00:30]}  Rxd1 {[%clk 0:00:20]} 30. Qxd1 {[%clk 0:00:29]}  Rd8 {[%clk 0:00:21]} 31. Qb3 {[%clk 0:00:23]}  Nxg3 {[%clk 0:00:21]} 32. Kxg3 {[%clk 0:00:22]}  b6 {[%clk 0:00:21]} 33. Qc3 {[%clk 0:00:12]}  Qf4+ {[%clk 0:00:20]} 34. Kg2 {[%clk 0:00:11]}  Re8 {[%clk 0:00:18]} 35. Nd4 {[%clk 0:00:07]}  Re4 {[%clk 0:00:17]} 36. Nf5 {[%clk 0:00:06]}  Qe5 {[%clk 0:00:10]} 37. Qf3 {[%clk 0:00:04]}  Kh7 {[%clk 0:00:08]} 38. Bd3 {[%clk 0:00:03]}  Rf4 {[%clk 0:00:08]} 39. Nh4+ {[%clk 0:00:02]}  Kh8 {[%clk 0:00:07]} 40. Qa8+ {[%clk 0:00:00]}  Kg7 {[%clk 0:00:07]} 0-1


[Site "https://www.chess.com"]

[Event "Titled Tuesday Blitz July 25 Early 2023"]
[White "Piesik, Piotr"]
[Black "Semenova, Alina"]
[WhiteFideId "1136194"]
[BlackFideId "24113875"]
[WhiteElo "2609"]
[BlackElo "2071"]
[Result "0-1"]
[Round "10"]
[TimeControl "180+2"]
[Date "2023.07.25"]
[WhiteClock "0:00:50"]
[BlackClock "0:00:41"]
[Board "167"]

1. Nf3 {[%clk 0:02:54]}  d5 {[%clk 0:02:57]} 2. g3 {[%clk 0:02:54]}  Nf6 {[%clk 0:02:58]} 3. Bg2 {[%clk 0:02:54]}  e6 {[%clk 0:02:58]} 4. O-O {[%clk 0:02:55]}  Be7 {[%clk 0:02:58]} 5. d3 {[%clk 0:02:55]}  O-O {[%clk 0:02:59]} 6. Nbd2 {[%clk 0:02:55]}  c5 {[%clk 0:03:00]} 7. e4 {[%clk 0:02:55]}  dxe4 {[%clk 0:03:00]} 8. dxe4 {[%clk 0:02:55]}  Nc6 {[%clk 0:03:00]} 9. c3 {[%clk 0:02:56]}  Qc7 {[%clk 0:02:55]} 10. Qc2 {[%clk 0:02:51]}  b6 {[%clk 0:02:51]} 11. Re1 {[%clk 0:02:50]}  e5 {[%clk 0:02:50]} 12. Nc4 {[%clk 0:02:51]}  b5 {[%clk 0:02:47]} 13. Ne3 {[%clk 0:02:50]}  Bb7 {[%clk 0:02:45]} 14. Nd5 {[%clk 0:02:48]}  Nxd5 {[%clk 0:02:36]} 15. exd5 {[%clk 0:02:49]}  Nd8 {[%clk 0:02:37]} 16. Nxe5 {[%clk 0:02:45]}  Bd6 {[%clk 0:02:37]} 17. Nd3 {[%clk 0:02:38]}  c4 {[%clk 0:02:35]} 18. Nf4 {[%clk 0:02:38]}  Bc8 {[%clk 0:02:27]} 19. a4 {[%clk 0:02:37]}  Nb7 {[%clk 0:02:21]} 20. axb5 {[%clk 0:02:36]}  Nc5 {[%clk 0:02:21]} 21. Be3 {[%clk 0:02:34]}  Nb3 {[%clk 0:02:20]} 22. Rad1 {[%clk 0:02:19]}  Bg4 {[%clk 0:02:20]} 23. f3 {[%clk 0:02:14]}  Bd7 {[%clk 0:02:20]} 24. Ne2 {[%clk 0:02:07]}  Bxb5 {[%clk 0:02:13]} 25. Nd4 {[%clk 0:02:07]}  Nxd4 {[%clk 0:02:10]} 26. Rxd4 {[%clk 0:02:08]}  Rfe8 {[%clk 0:02:06]} 27. Rh4 {[%clk 0:02:02]}  g6 {[%clk 0:02:06]} 28. Qf2 {[%clk 0:01:52]}  Rxe3 {[%clk 0:02:02]} 29. Qxe3 {[%clk 0:01:39]}  Bc5 {[%clk 0:01:59]} 30. Rd4 {[%clk 0:01:38]}  Re8 {[%clk 0:01:57]} 31. Qd2 {[%clk 0:01:38]}  Rxe1+ {[%clk 0:01:51]} 32. Qxe1 {[%clk 0:01:39]}  Bxd4+ {[%clk 0:01:41]} 33. cxd4 {[%clk 0:01:39]}  Qd6 {[%clk 0:01:16]} 34. f4 {[%clk 0:01:36]}  f6 {[%clk 0:01:12]} 35. Qe6+ {[%clk 0:01:32]}  Qxe6 {[%clk 0:01:11]} 36. dxe6 {[%clk 0:01:33]}  Kf8 {[%clk 0:01:12]} 37. d5 {[%clk 0:01:32]}  Ke7 {[%clk 0:01:12]} 38. Kf2 {[%clk 0:01:33]}  Kd6 {[%clk 0:01:12]} 39. Ke3 {[%clk 0:01:33]}  a5 {[%clk 0:01:08]} 40. Kd4 {[%clk 0:01:33]}  Ba6 {[%clk 0:01:08]} 41. Bf1 {[%clk 0:01:33]}  c3 {[%clk 0:01:07]} 42. bxc3 {[%clk 0:01:24]}  Bxf1 {[%clk 0:01:06]} 43. c4 {[%clk 0:01:24]}  a4 {[%clk 0:01:03]} 44. c5+ {[%clk 0:01:25]}  Ke7 {[%clk 0:00:59]} 45. c6 {[%clk 0:01:22]}  Kd6 {[%clk 0:00:59]} 46. Kc3 {[%clk 0:01:19]}  Bg2 {[%clk 0:00:48]} 47. Kb4 {[%clk 0:00:55]}  Bxd5 {[%clk 0:00:42]} 48. e7 {[%clk 0:00:52]}  Kxe7 {[%clk 0:00:42]} 49. c7 {[%clk 0:00:50]}  Kd7 {[%clk 0:00:41]} 0-1


[Site "https://www.chess.com"]

[Event "Titled Tuesday Blitz July 25 Early 2023"]
[White "Vafin, Ayrat"]
[Black "Navyblue1"]
[WhiteFideId "4146530"]
[WhiteElo "2306"]
[BlackElo "1913"]
[Result "0-1"]
[Round "10"]
[TimeControl "180+2"]
[Date "2023.07.25"]
[WhiteClock "0:00:00"]
[BlackClock "0:00:04"]
[Board "168"]

1. d4 {[%clk 0:03:00]}  Nf6 {[%clk 0:02:49]} 2. Bf4 {[%clk 0:03:00]}  c5 {[%clk 0:02:47]} 3. e3 {[%clk 0:03:01]}  Qb6 {[%clk 0:02:45]} 4. Nc3 {[%clk 0:02:57]}  d6 {[%clk 0:02:30]} 5. a3 {[%clk 0:02:50]}  Bd7 {[%clk 0:01:59]} 6. Rb1 {[%clk 0:02:41]}  e6 {[%clk 0:01:41]} 7. Nf3 {[%clk 0:02:40]}  Be7 {[%clk 0:01:37]} 8. h3 {[%clk 0:02:39]}  O-O {[%clk 0:01:26]} 9. Be2 {[%clk 0:02:35]}  cxd4 {[%clk 0:00:41]} 10. exd4 {[%clk 0:02:24]}  d5 {[%clk 0:00:38]} 11. O-O {[%clk 0:02:22]}  Nc6 {[%clk 0:00:35]} 12. Re1 {[%clk 0:02:15]}  Rac8 {[%clk 0:00:22]} 13. Bb5 {[%clk 0:02:09]}  a6 {[%clk 0:00:19]} 14. Ba4 {[%clk 0:01:55]}  Qa7 {[%clk 0:00:17]} 15. Bxc6 {[%clk 0:01:23]}  Bxc6 {[%clk 0:00:17]} 16. Ne5 {[%clk 0:01:19]}  Be8 {[%clk 0:00:13]} 17. Re3 {[%clk 0:01:13]}  b5 {[%clk 0:00:13]} 18. Rg3 {[%clk 0:01:10]}  Kh8 {[%clk 0:00:12]} 19. Bg5 {[%clk 0:01:03]}  Rg8 {[%clk 0:00:10]} 20. Bxf6 {[%clk 0:00:53]}  Bxf6 {[%clk 0:00:09]} 21. Nf3 {[%clk 0:00:18]}  Rc4 {[%clk 0:00:08]} 22. Rg4 {[%clk 0:00:14]}  Qc7 {[%clk 0:00:05]} 23. Qe2 {[%clk 0:00:12]}  a5 {[%clk 0:00:05]} 24. Nxb5 {[%clk 0:00:11]}  Bxb5 {[%clk 0:00:03]} 25. b3 {[%clk 0:00:10]}  Rxc2 {[%clk 0:00:03]} 26. Qxb5 {[%clk 0:00:10]}  Rc1+ {[%clk 0:00:03]} 27. Rxc1 {[%clk 0:00:09]}  Qxc1+ {[%clk 0:00:03]} 28. Kh2 {[%clk 0:00:09]}  Qc7+ {[%clk 0:00:04]} 29. g3 {[%clk 0:00:08]}  Rb8 {[%clk 0:00:05]} 30. Qa4 {[%clk 0:00:07]}  Qb6 {[%clk 0:00:04]} 31. b4 {[%clk 0:00:06]}  axb4 {[%clk 0:00:04]} 32. axb4 {[%clk 0:00:07]}  Qxb4 {[%clk 0:00:04]} 33. Qd7 {[%clk 0:00:07]}  Qb7 {[%clk 0:00:03]} 34. Qa4 {[%clk 0:00:06]}  h6 {[%clk 0:00:03]} 35. Qc2 {[%clk 0:00:05]}  Rc8 {[%clk 0:00:03]} 36. Qd3 {[%clk 0:00:04]}  Qc7 {[%clk 0:00:04]} 37. Ne5 {[%clk 0:00:04]}  Bxe5 {[%clk 0:00:03]} 38. dxe5 {[%clk 0:00:05]}  Qxe5 {[%clk 0:00:04]} 39. f4 {[%clk 0:00:05]}  Qf6 {[%clk 0:00:04]} 40. Qe3 {[%clk 0:00:03]}  Rd8 {[%clk 0:00:04]} 41. Qd3 {[%clk 0:00:03]}  d4 {[%clk 0:00:04]} 42. h4 {[%clk 0:00:03]}  Qf5 {[%clk 0:00:05]} 43. Kh3 {[%clk 0:00:00]}  Qxd3 {[%clk 0:00:04]} 0-1


[Site "https://www.chess.com"]

[Event "Titled Tuesday Blitz July 25 Early 2023"]
[White "Bogumil, Tatiana"]
[Black "Floresvillar Gonzalez, Luis Migu"]
[WhiteFideId "4110579"]
[BlackFideId "5100542"]
[WhiteElo "2013"]
[BlackElo "2086"]
[Result "0-1"]
[Round "10"]
[TimeControl "180+2"]
[Date "2023.07.25"]
[WhiteClock "0:00:00"]
[BlackClock "0:01:56"]
[Board "169"]

1. Nf3 {[%clk 0:00:35]}  d5 {[%clk 0:02:57]} 2. c4 {[%clk 0:00:35]}  c6 {[%clk 0:02:57]} 3. b3 {[%clk 0:00:35]}  Nf6 {[%clk 0:02:57]} 4. Bb2 {[%clk 0:00:35]}  Bf5 {[%clk 0:02:56]} 5. g3 {[%clk 0:00:35]}  e6 {[%clk 0:02:56]} 6. Bg2 {[%clk 0:00:36]}  Nbd7 {[%clk 0:02:53]} 7. O-O {[%clk 0:00:36]}  Be7 {[%clk 0:02:53]} 8. d3 {[%clk 0:00:36]}  O-O {[%clk 0:02:52]} 9. Nbd2 {[%clk 0:00:37]}  h6 {[%clk 0:02:50]} 10. h3 {[%clk 0:00:36]}  Re8 {[%clk 0:02:49]} 11. a3 {[%clk 0:00:36]}  a5 {[%clk 0:02:48]} 12. Re1 {[%clk 0:00:34]}  Qb6 {[%clk 0:02:45]} 13. e4 {[%clk 0:00:29]}  dxe4 {[%clk 0:02:39]} 14. dxe4 {[%clk 0:00:30]}  Bh7 {[%clk 0:02:37]} 15. e5 {[%clk 0:00:30]}  Nh5 {[%clk 0:02:31]} 16. Bd4 {[%clk 0:00:20]}  Bc5 {[%clk 0:02:27]} 17. Bxc5 {[%clk 0:00:17]}  Qxc5 {[%clk 0:02:27]} 18. Qe2 {[%clk 0:00:15]}  Nxg3 {[%clk 0:02:25]} 19. Qe3 {[%clk 0:00:14]}  Qxe3 {[%clk 0:02:23]} 20. Rxe3 {[%clk 0:00:15]}  Nf5 {[%clk 0:02:23]} 21. Rc3 {[%clk 0:00:15]}  Nc5 {[%clk 0:02:21]} 22. Re1 {[%clk 0:00:11]}  Red8 {[%clk 0:02:21]} 23. Nf1 {[%clk 0:00:11]}  b6 {[%clk 0:02:19]} 24. N3d2 {[%clk 0:00:07]}  Rac8 {[%clk 0:02:17]} 25. Ne4 {[%clk 0:00:07]}  Nxe4 {[%clk 0:02:17]} 26. Bxe4 {[%clk 0:00:08]}  Ne7 {[%clk 0:02:15]} 27. Ng3 {[%clk 0:00:09]}  Nf5 {[%clk 0:02:07]} 28. f4 {[%clk 0:00:08]}  Nxg3 {[%clk 0:02:07]} 29. Rxg3 {[%clk 0:00:08]}  Bxe4 {[%clk 0:02:06]} 30. Rxe4 {[%clk 0:00:09]}  Rd2 {[%clk 0:02:05]} 31. Rg2 {[%clk 0:00:07]}  Rcd8 {[%clk 0:02:03]} 32. Re3 {[%clk 0:00:05]}  g6 {[%clk 0:01:57]} 33. h4 {[%clk 0:00:00]}  h5 {[%clk 0:01:56]} 0-1


[Site "https://www.chess.com"]

[Event "Titled Tuesday Blitz July 25 Early 2023"]
[White "Vachier-Lagrave, Maxime"]
[Black "Iturrizaga Bonelli, Eduardo"]
[WhiteFideId "623539"]
[BlackFideId "3901211"]
[WhiteElo "3155"]
[BlackElo "2945"]
[Result "1/2-1/2"]
[Round "11"]
[TimeControl "180+2"]
[Date "2023.07.25"]
[WhiteClock "0:01:41"]
[BlackClock "0:00:19"]
[Board "1"]

1. e4 {[%clk 0:03:00]}  c5 {[%clk 0:02:59]} 2. Nf3 {[%clk 0:03:00]}  Nc6 {[%clk 0:02:58]} 3. c3 {[%clk 0:03:00]}  Nf6 {[%clk 0:02:56]} 4. e5 {[%clk 0:03:00]}  Nd5 {[%clk 0:02:56]} 5. Bc4 {[%clk 0:03:01]}  Nb6 {[%clk 0:02:57]} 6. Bb3 {[%clk 0:03:01]}  d5 {[%clk 0:02:50]} 7. exd6 {[%clk 0:03:01]}  Qxd6 {[%clk 0:02:50]} 8. O-O {[%clk 0:03:01]}  Be6 {[%clk 0:02:41]} 9. Bxe6 {[%clk 0:02:48]}  Qxe6 {[%clk 0:02:42]} 10. d4 {[%clk 0:02:44]}  cxd4 {[%clk 0:02:31]} 11. Nxd4 {[%clk 0:02:44]}  Nxd4 {[%clk 0:02:24]} 12. Qxd4 {[%clk 0:02:45]}  Rd8 {[%clk 0:02:22]} 13. Qh4 {[%clk 0:02:40]}  Qg6 {[%clk 0:01:50]} 14. Na3 {[%clk 0:02:26]}  e6 {[%clk 0:01:20]} 15. Be3 {[%clk 0:02:15]}  Be7 {[%clk 0:01:09]} 16. Qf4 {[%clk 0:02:07]}  O-O {[%clk 0:00:54]} 17. Bxb6 {[%clk 0:02:05]}  axb6 {[%clk 0:00:19]} 18. Qc7 {[%clk 0:01:41]} 1/2-1/2


[Site "https://www.chess.com"]

[Event "Titled Tuesday Blitz July 25 Early 2023"]
[White "So, Wesley"]
[Black "Megaranto, Susanto"]
[WhiteFideId "5202213"]
[BlackFideId "7101384"]
[WhiteElo "3115"]
[BlackElo "2963"]
[Result "0-1"]
[Round "11"]
[TimeControl "180+2"]
[Date "2023.07.25"]
[WhiteClock "0:00:17"]
[BlackClock "0:00:19"]
[Board "2"]

1. e4 {[%clk 0:03:00]}  c6 {[%clk 0:02:58]} 2. Nf3 {[%clk 0:02:54]}  d5 {[%clk 0:02:57]} 3. d3 {[%clk 0:02:55]}  dxe4 {[%clk 0:02:52]} 4. dxe4 {[%clk 0:02:56]}  Qxd1+ {[%clk 0:02:52]} 5. Kxd1 {[%clk 0:02:57]}  Bg4 {[%clk 0:02:52]} 6. Nd2 {[%clk 0:02:54]}  Nd7 {[%clk 0:02:48]} 7. h3 {[%clk 0:02:51]}  Bxf3+ {[%clk 0:02:43]} 8. Nxf3 {[%clk 0:02:52]}  e6 {[%clk 0:02:43]} 9. Bd3 {[%clk 0:02:45]}  Ngf6 {[%clk 0:02:42]} 10. Ke2 {[%clk 0:02:44]}  h6 {[%clk 0:02:40]} 11. e5 {[%clk 0:02:42]}  Nd5 {[%clk 0:02:34]} 12. c4 {[%clk 0:02:41]}  Nb4 {[%clk 0:02:32]} 13. Bb1 {[%clk 0:02:35]}  a5 {[%clk 0:02:32]} 14. Rd1 {[%clk 0:02:33]}  Be7 {[%clk 0:02:23]} 15. Bd2 {[%clk 0:02:24]}  a4 {[%clk 0:02:18]} 16. Bc3 {[%clk 0:02:16]}  a3 {[%clk 0:02:11]} 17. b3 {[%clk 0:02:16]}  Na6 {[%clk 0:02:09]} 18. Ne1 {[%clk 0:02:11]}  Bb4 {[%clk 0:02:08]} 19. Bxb4 {[%clk 0:01:59]}  Nxb4 {[%clk 0:02:09]} 20. f4 {[%clk 0:01:59]}  Nc5 {[%clk 0:02:05]} 21. Nc2 {[%clk 0:01:53]}  Nxc2 {[%clk 0:01:57]} 22. Bxc2 {[%clk 0:01:54]}  Na6 {[%clk 0:01:51]} 23. Kd2 {[%clk 0:01:53]}  Ke7 {[%clk 0:01:48]} 24. Kc3 {[%clk 0:01:53]}  c5 {[%clk 0:01:44]} 25. Be4 {[%clk 0:01:52]}  Rad8 {[%clk 0:01:42]} 26. b4 {[%clk 0:01:24]}  cxb4+ {[%clk 0:01:40]} 27. Kc2 {[%clk 0:01:24]}  Rxd1 {[%clk 0:01:28]} 28. Rxd1 {[%clk 0:01:25]}  Rd8 {[%clk 0:01:26]} 29. Rb1 {[%clk 0:01:23]}  Rd4 {[%clk 0:01:17]} 30. Bxb7 {[%clk 0:01:22]}  Rxc4+ {[%clk 0:01:11]} 31. Kd3 {[%clk 0:01:08]}  Rc3+ {[%clk 0:01:09]} 32. Kd2 {[%clk 0:01:03]}  Nc5 {[%clk 0:00:37]} 33. Rxb4 {[%clk 0:01:02]}  Rg3 {[%clk 0:00:37]} 34. Bf3 {[%clk 0:00:59]}  g5 {[%clk 0:00:36]} 35. Rb5 {[%clk 0:00:57]}  Nd7 {[%clk 0:00:33]} 36. Rb7 {[%clk 0:00:53]}  Kd8 {[%clk 0:00:29]} 37. Ke3 {[%clk 0:00:44]}  gxf4+ {[%clk 0:00:26]} 38. Kxf4 {[%clk 0:00:45]}  Rg5 {[%clk 0:00:26]} 39. g4 {[%clk 0:00:44]}  Nxe5 {[%clk 0:00:25]} 40. h4 {[%clk 0:00:34]}  Ng6+ {[%clk 0:00:23]} 41. Kg3 {[%clk 0:00:35]}  Rc5 {[%clk 0:00:24]} 42. Rxf7 {[%clk 0:00:28]}  Rc3 {[%clk 0:00:24]} 43. h5 {[%clk 0:00:28]}  Ne5 {[%clk 0:00:23]} 44. Rf4 {[%clk 0:00:28]}  Ke7 {[%clk 0:00:22]} 45. Kg2 {[%clk 0:00:24]}  Rxf3 {[%clk 0:00:13]} 46. Rxf3 {[%clk 0:00:25]}  Nxf3 {[%clk 0:00:14]} 47. Kxf3 {[%clk 0:00:26]}  Kf6 {[%clk 0:00:14]} 48. Kf4 {[%clk 0:00:18]}  e5+ {[%clk 0:00:14]} 49. Ke4 {[%clk 0:00:18]}  Kg5 {[%clk 0:00:15]} 50. Kxe5 {[%clk 0:00:19]}  Kxg4 {[%clk 0:00:15]} 51. Ke4 {[%clk 0:00:17]}  Kxh5 {[%clk 0:00:15]} 52. Kf5 {[%clk 0:00:18]}  Kh4 {[%clk 0:00:13]} 53. Kf4 {[%clk 0:00:18]}  h5 {[%clk 0:00:13]} 54. Kf3 {[%clk 0:00:18]}  Kg5 {[%clk 0:00:14]} 55. Kg3 {[%clk 0:00:19]}  Kf5 {[%clk 0:00:14]} 56. Kh4 {[%clk 0:00:19]}  Ke4 {[%clk 0:00:15]} 57. Kxh5 {[%clk 0:00:20]}  Kd3 {[%clk 0:00:16]} 58. Kg4 {[%clk 0:00:21]}  Kc3 {[%clk 0:00:17]} 59. Kf3 {[%clk 0:00:21]}  Kb2 {[%clk 0:00:18]} 60. Ke3 {[%clk 0:00:22]}  Kxa2 {[%clk 0:00:18]} 61. Kd2 {[%clk 0:00:17]}  Kb2 {[%clk 0:00:19]} 0-1


[Site "https://www.chess.com"]

[Event "Titled Tuesday Blitz July 25 Early 2023"]
[White "Kevlishvili, Robby"]
[Black "Tari, Aryan"]
[WhiteFideId "1040634"]
[BlackFideId "1510045"]
[WhiteElo "3002"]
[BlackElo "2948"]
[Result "1-0"]
[Round "11"]
[TimeControl "180+2"]
[Date "2023.07.25"]
[WhiteClock "0:00:49"]
[BlackClock "0:00:11"]
[Board "4"]

1. e4 {[%clk 0:03:00]}  e5 {[%clk 0:03:00]} 2. Nf3 {[%clk 0:02:58]}  Nc6 {[%clk 0:03:00]} 3. Bb5 {[%clk 0:02:55]}  Nge7 {[%clk 0:03:00]} 4. O-O {[%clk 0:02:54]}  Ng6 {[%clk 0:03:00]} 5. c3 {[%clk 0:02:53]}  d5 {[%clk 0:02:58]} 6. d3 {[%clk 0:02:34]}  Be7 {[%clk 0:02:57]} 7. Re1 {[%clk 0:02:32]}  O-O {[%clk 0:02:55]} 8. exd5 {[%clk 0:02:30]}  Qxd5 {[%clk 0:02:55]} 9. Bc4 {[%clk 0:02:31]}  Qd8 {[%clk 0:02:52]} 10. b4 {[%clk 0:02:30]}  a6 {[%clk 0:02:47]} 11. Nbd2 {[%clk 0:02:28]}  Kh8 {[%clk 0:02:44]} 12. a4 {[%clk 0:02:27]}  f5 {[%clk 0:02:23]} 13. Bb2 {[%clk 0:02:19]}  Bf6 {[%clk 0:02:23]} 14. Qb3 {[%clk 0:01:50]}  Nf4 {[%clk 0:02:03]} 15. Rad1 {[%clk 0:01:49]}  Qe8 {[%clk 0:01:54]} 16. Nf1 {[%clk 0:01:40]}  Qg6 {[%clk 0:01:52]} 17. Ng3 {[%clk 0:01:40]}  Bd7 {[%clk 0:01:48]} 18. Bc1 {[%clk 0:01:28]}  Qg4 {[%clk 0:01:48]} 19. Bxf4 {[%clk 0:01:25]}  Qxf4 {[%clk 0:01:44]} 20. Nh5 {[%clk 0:01:20]}  Qh6 {[%clk 0:01:43]} 21. Nxf6 {[%clk 0:01:20]}  Qxf6 {[%clk 0:01:44]} 22. Bd5 {[%clk 0:01:20]}  Rae8 {[%clk 0:01:41]} 23. b5 {[%clk 0:01:16]}  axb5 {[%clk 0:01:38]} 24. axb5 {[%clk 0:01:17]}  Na5 {[%clk 0:01:36]} 25. Qb4 {[%clk 0:01:17]}  b6 {[%clk 0:01:36]} 26. Nxe5 {[%clk 0:01:09]}  Bxb5 {[%clk 0:01:22]} 27. Nf7+ {[%clk 0:01:00]}  Rxf7 {[%clk 0:01:23]} 28. Bxf7 {[%clk 0:00:57]}  Rxe1+ {[%clk 0:01:13]} 29. Rxe1 {[%clk 0:00:57]}  Qxf7 {[%clk 0:01:11]} 30. Qxb5 {[%clk 0:00:57]}  h6 {[%clk 0:01:11]} 31. Qe8+ {[%clk 0:00:57]}  Qxe8 {[%clk 0:01:12]} 32. Rxe8+ {[%clk 0:00:58]}  Kh7 {[%clk 0:01:13]} 33. Rc8 {[%clk 0:00:51]}  c6 {[%clk 0:01:07]} 34. c4 {[%clk 0:00:51]}  c5 {[%clk 0:00:14]} 35. Rb8 {[%clk 0:00:50]}  Nc6 {[%clk 0:00:13]} 36. Rxb6 {[%clk 0:00:49]}  Ne5 {[%clk 0:00:13]} 37. Rd6 {[%clk 0:00:49]}  g5 {[%clk 0:00:11]} 38. Rd5 {[%clk 0:00:49]} 1-0


[Site "https://www.chess.com"]

[Event "Titled Tuesday Blitz July 25 Early 2023"]
[White "Svane, Frederik"]
[Black "Kramnik, Vladimir"]
[WhiteFideId "12923044"]
[BlackFideId "4101588"]
[WhiteElo "2950"]
[BlackElo "2996"]
[Result "0-1"]
[Round "11"]
[TimeControl "180+2"]
[Date "2023.07.25"]
[WhiteClock "0:00:00"]
[BlackClock "0:00:09"]
[Board "5"]

1. e4 {[%clk 0:03:00]}  c5 {[%clk 0:03:00]} 2. Nf3 {[%clk 0:03:01]}  e6 {[%clk 0:03:01]} 3. c3 {[%clk 0:03:01]}  Nf6 {[%clk 0:03:00]} 4. e5 {[%clk 0:03:02]}  Nd5 {[%clk 0:03:00]} 5. d4 {[%clk 0:03:02]}  cxd4 {[%clk 0:03:00]} 6. cxd4 {[%clk 0:03:03]}  d6 {[%clk 0:03:00]} 7. Bc4 {[%clk 0:03:00]}  Be7 {[%clk 0:03:00]} 8. O-O {[%clk 0:03:00]}  O-O {[%clk 0:03:01]} 9. Re1 {[%clk 0:03:00]}  Nc6 {[%clk 0:02:56]} 10. exd6 {[%clk 0:03:00]}  Bxd6 {[%clk 0:02:55]} 11. Nc3 {[%clk 0:02:56]}  h6 {[%clk 0:02:52]} 12. a3 {[%clk 0:02:49]}  b6 {[%clk 0:02:47]} 13. Qd3 {[%clk 0:02:43]}  Nce7 {[%clk 0:02:36]} 14. Ne5 {[%clk 0:02:01]}  Bb7 {[%clk 0:02:31]} 15. Ne4 {[%clk 0:01:54]}  Nf5 {[%clk 0:02:24]} 16. Bd2 {[%clk 0:01:48]}  Rc8 {[%clk 0:02:01]} 17. Rad1 {[%clk 0:01:43]}  Nf6 {[%clk 0:01:50]} 18. Nxd6 {[%clk 0:01:34]}  Nxd6 {[%clk 0:01:45]} 19. Ba2 {[%clk 0:01:17]}  Bd5 {[%clk 0:01:45]} 20. b3 {[%clk 0:00:41]}  Be4 {[%clk 0:01:45]} 21. Qh3 {[%clk 0:00:38]}  Bf5 {[%clk 0:01:39]} 22. Qf3 {[%clk 0:00:16]}  a5 {[%clk 0:01:17]} 23. b4 {[%clk 0:00:16]}  Bc2 {[%clk 0:01:10]} 24. Rc1 {[%clk 0:00:15]}  Be4 {[%clk 0:01:08]} 25. Qh3 {[%clk 0:00:13]}  Rxc1 {[%clk 0:00:58]} 26. Bxc1 {[%clk 0:00:11]}  axb4 {[%clk 0:00:56]} 27. axb4 {[%clk 0:00:11]}  Qa8 {[%clk 0:00:50]} 28. Bb3 {[%clk 0:00:06]}  Nf5 {[%clk 0:00:46]} 29. g4 {[%clk 0:00:02]}  Nxd4 {[%clk 0:00:44]} 30. g5 {[%clk 0:00:03]}  hxg5 {[%clk 0:00:39]} 31. Bxg5 {[%clk 0:00:04]}  Nh7 {[%clk 0:00:20]} 32. Bd2 {[%clk 0:00:02]}  Bf5 {[%clk 0:00:18]} 33. Qe3 {[%clk 0:00:02]}  Nxb3 {[%clk 0:00:18]} 34. Qxb3 {[%clk 0:00:03]}  Nf6 {[%clk 0:00:18]} 35. Qe3 {[%clk 0:00:01]}  Rd8 {[%clk 0:00:15]} 36. Bc1 {[%clk 0:00:01]}  Rd5 {[%clk 0:00:15]} 37. Qg3 {[%clk 0:00:01]}  Ne4 {[%clk 0:00:13]} 38. Qf4 {[%clk 0:00:02]}  Qb8 {[%clk 0:00:12]} 39. Bb2 {[%clk 0:00:00]}  Qd8 {[%clk 0:00:09]} 0-1


[Site "https://www.chess.com"]